[Event "*** SCC Grand Prix: Titled Tuesday Blitz"]
[Site "Chess.com"]
[Date "2020.07.14"]
[Round "6"]
[White "QueenOfTactics90"]
[Black "grandcoach"]
[Result "1-0"]
[WhiteElo "2006"]
[BlackElo "2098"]
[TimeControl "180+1"]
[EndTime "11:07:27 PDT"]
[Termination "QueenOfTactics90 won on time"]

1. e4 {[%clk 0:03:00.9]} 1... c5 {[%clk 0:02:59.9]} 2. Nf3 {[%clk 0:03:00.6]}
2... Nc6 {[%clk 0:03:00.5]} 3. d4 {[%clk 0:03:01.2]} 3... cxd4 {[%clk 0:03:01]}
4. Nxd4 {[%clk 0:03:01.7]} 4... e5 {[%clk 0:03:01.5]} 5. Nb5 {[%clk 0:03:01]}
5... d6 {[%clk 0:03:00.9]} 6. c4 {[%clk 0:03:00.9]} 6... Be7 {[%clk 0:02:58.1]}
7. Be3 {[%clk 0:02:58.3]} 7... f5 {[%clk 0:02:53.2]} 8. exf5 {[%clk 0:02:51.9]}
8... Bxf5 {[%clk 0:02:54.1]} 9. N1c3 {[%clk 0:02:43.1]} 9... a6 {[%clk
0:02:53.3]} 10. Na3 {[%clk 0:02:40.9]} 10... Nf6 {[%clk 0:02:53.8]} 11. Be2
{[%clk 0:02:37.6]} 11... O-O {[%clk 0:02:52.1]} 12. Nd5 {[%clk 0:02:27.5]} 12...
Rc8 {[%clk 0:02:24.6]} 13. Nxe7+ {[%clk 0:02:17]} 13... Qxe7 {[%clk 0:02:18]}
14. O-O {[%clk 0:02:16.6]} 14... Kh8 {[%clk 0:02:04.1]} 15. b4 {[%clk
0:02:16.5]} 15... Ne4 {[%clk 0:01:53.1]} 16. b5 {[%clk 0:02:09]} 16... Nc3
{[%clk 0:01:39.6]} 17. Qd2 {[%clk 0:01:58.3]} 17... Nxe2+ {[%clk 0:01:39.4]} 18.
Qxe2 {[%clk 0:01:58.1]} 18... Na5 {[%clk 0:01:34.3]} 19. Bb6 {[%clk 0:01:48.6]}
19... d5 {[%clk 0:01:21.6]} 20. c5 {[%clk 0:01:47.3]} 20... Nc4 {[%clk
0:01:15.8]} 21. Nxc4 {[%clk 0:01:46.3]} 21... dxc4 {[%clk 0:01:15.7]} 22. Qxc4
{[%clk 0:01:47.2]} 22... Qd7 {[%clk 0:01:08.7]} 23. bxa6 {[%clk 0:01:40.8]}
23... Bd3 {[%clk 0:01:08.2]} 24. Rfd1 {[%clk 0:01:36.4]} 24... Bxc4 {[%clk
0:00:56]} 25. Rxd7 {[%clk 0:01:36.2]} 25... Bxa6 {[%clk 0:00:54.3]} 26. Re1
{[%clk 0:01:34.4]} 26... Rce8 {[%clk 0:00:46.9]} 27. Re4 {[%clk 0:01:29.2]}
27... Bb5 {[%clk 0:00:36.4]} 28. Rc7 {[%clk 0:01:14.3]} 28... Bc6 {[%clk
0:00:36.2]} 29. Re3 {[%clk 0:01:13.7]} 29... Ra8 {[%clk 0:00:29.9]} 30. a3
{[%clk 0:01:12.3]} 30... h6 {[%clk 0:00:24.9]} 31. h3 {[%clk 0:01:06.3]} 31...
Rf6 {[%clk 0:00:20.1]} 32. Re7 {[%clk 0:01:03.9]} 32... Rg6 {[%clk 0:00:19]} 33.
g3 {[%clk 0:01:02]} 33... e4 {[%clk 0:00:16.9]} 34. g4 {[%clk 0:00:54]} 34... h5
{[%clk 0:00:15.9]} 35. Rg3 {[%clk 0:00:50.9]} 35... hxg4 {[%clk 0:00:12.4]} 36.
hxg4 {[%clk 0:00:51.8]} 36... Rf8 {[%clk 0:00:09.7]} 37. Bc7 {[%clk 0:00:42.2]}
37... Rf3 {[%clk 0:00:09.5]} 38. Kg2 {[%clk 0:00:36]} 38... e3 {[%clk
0:00:05.5]} 39. Rxf3 {[%clk 0:00:26.4]} 39... Rxg4+ {[%clk 0:00:04.6]} 40. Kh3
{[%clk 0:00:24.7]} 40... Bxf3 {[%clk 0:00:04.5]} 41. Rxe3 {[%clk 0:00:24.3]}
41... Bd1 {[%clk 0:00:02.4]} 42. f3 {[%clk 0:00:22.3]} 42... Ra4 {[%clk
0:00:01.1]} 43. Kg3 {[%clk 0:00:20]} 1-0

[Event "*** SCC Grand Prix: Titled Tuesday Blitz"]
[Site "Chess.com"]
[Date "2020.07.14"]
[Round "6"]
[White "sertalzin"]
[Black "Shushik"]
[Result "0-1"]
[WhiteElo "1940"]
[BlackElo "2212"]
[TimeControl "180+1"]
[EndTime "11:07:28 PDT"]
[Termination "Shushik won on time"]

1. d4 {[%clk 0:03:00.9]} 1... d5 {[%clk 0:02:59.6]} 2. c4 {[%clk 0:02:56.9]}
2... e6 {[%clk 0:02:59.3]} 3. Nf3 {[%clk 0:02:56]} 3... Nf6 {[%clk 0:02:58.7]}
4. g3 {[%clk 0:02:55.2]} 4... dxc4 {[%clk 0:02:58.1]} 5. Bg2 {[%clk 0:02:54.8]}
5... Nc6 {[%clk 0:02:57.7]} 6. O-O {[%clk 0:02:52.3]} 6... Rb8 {[%clk
0:02:57.6]} 7. e3 {[%clk 0:02:51.3]} 7... b5 {[%clk 0:02:55.5]} 8. a4 {[%clk
0:02:42.3]} 8... a6 {[%clk 0:02:51.9]} 9. Nfd2 {[%clk 0:02:34]} 9... Bb7 {[%clk
0:02:48.2]} 10. b3 {[%clk 0:02:26.4]} 10... cxb3 {[%clk 0:02:44.3]} 11. axb5
{[%clk 0:02:24.9]} 11... axb5 {[%clk 0:02:41]} 12. Qxb3 {[%clk 0:02:18.7]} 12...
b4 {[%clk 0:02:35]} 13. Nc4 {[%clk 0:02:08.2]} 13... Be7 {[%clk 0:02:30.5]} 14.
Bb2 {[%clk 0:02:06.5]} 14... O-O {[%clk 0:02:29.3]} 15. Nbd2 {[%clk 0:02:05.6]}
15... Nd7 {[%clk 0:02:05.9]} 16. Rfc1 {[%clk 0:02:00.7]} 16... Nf6 {[%clk
0:01:59.7]} 17. Qc2 {[%clk 0:01:17]} 17... Qd7 {[%clk 0:01:42.5]} 18. Nb3 {[%clk
0:01:15.4]} 18... Rfd8 {[%clk 0:01:36.6]} 19. f3 {[%clk 0:00:39.9]} 19... Qe8
{[%clk 0:01:32.3]} 20. Nca5 {[%clk 0:00:36.3]} 20... Nxa5 {[%clk 0:01:30.5]} 21.
Nxa5 {[%clk 0:00:34.3]} 21... Ba8 {[%clk 0:01:24.5]} 22. Nc6 {[%clk 0:00:32.1]}
22... Bxc6 {[%clk 0:01:23.7]} 23. Qxc6 {[%clk 0:00:31.5]} 23... Rbc8 {[%clk
0:01:04.9]} 24. e4 {[%clk 0:00:25.9]} 24... Rd6 {[%clk 0:01:04.2]} 25. Qxe8+
{[%clk 0:00:22.6]} 25... Nxe8 {[%clk 0:01:02.3]} 26. Ra7 {[%clk 0:00:21.3]}
26... Bd8 {[%clk 0:00:56.9]} 27. f4 {[%clk 0:00:19.9]} 27... Rb6 {[%clk
0:00:53.8]} 28. d5 {[%clk 0:00:18.2]} 28... exd5 {[%clk 0:00:51.4]} 29. exd5
{[%clk 0:00:17.9]} 29... Bf6 {[%clk 0:00:49.9]} 30. Bxf6 {[%clk 0:00:14.4]}
30... Rxf6 {[%clk 0:00:49.2]} 31. Rb1 {[%clk 0:00:11.5]} 31... Rb6 {[%clk
0:00:48.5]} 32. Ra4 {[%clk 0:00:09.8]} 32... Rcb8 {[%clk 0:00:47.7]} 33. Rb3
{[%clk 0:00:09.4]} 33... Nd6 {[%clk 0:00:46]} 34. h4 {[%clk 0:00:08.7]} 34...
Nc4 {[%clk 0:00:43.9]} 35. Ra7 {[%clk 0:00:07.8]} 35... R6b7 {[%clk 0:00:38.4]}
36. Rxb7 {[%clk 0:00:06.5]} 36... Rxb7 {[%clk 0:00:37.9]} 37. d6 {[%clk
0:00:06.5]} 37... Rb6 {[%clk 0:00:35.4]} 38. dxc7 {[%clk 0:00:05.2]} 38... Nd6
{[%clk 0:00:34.6]} 0-1

[Event "*** SCC Grand Prix: Titled Tuesday Blitz"]
[Site "Chess.com"]
[Date "2020.07.14"]
[Round "6"]
[White "Alexandercs432"]
[Black "ChessArchitect64"]
[Result "1-0"]
[WhiteElo "2090"]
[BlackElo "1856"]
[TimeControl "180+1"]
[EndTime "11:07:30 PDT"]
[Termination "Alexandercs432 won by checkmate"]

1. e4 {[%clk 0:03:00.9]} 1... c5 {[%clk 0:02:59.1]} 2. Nf3 {[%clk 0:03:00.6]}
2... d6 {[%clk 0:02:58.7]} 3. d4 {[%clk 0:03:00.9]} 3... cxd4 {[%clk 0:02:58.4]}
4. Nxd4 {[%clk 0:03:01.5]} 4... Nf6 {[%clk 0:02:58.4]} 5. Nc3 {[%clk 0:03:01.9]}
5... Nc6 {[%clk 0:02:58]} 6. f3 {[%clk 0:02:59.1]} 6... e5 {[%clk 0:02:50]} 7.
Nb3 {[%clk 0:02:58.6]} 7... a5 {[%clk 0:02:45.8]} 8. Bb5 {[%clk 0:02:56.1]} 8...
Be6 {[%clk 0:02:42.2]} 9. Be3 {[%clk 0:02:50.6]} 9... Be7 {[%clk 0:02:42]} 10.
Qd2 {[%clk 0:02:49.7]} 10... O-O {[%clk 0:02:41.5]} 11. O-O-O {[%clk 0:02:49]}
11... Nb4 {[%clk 0:02:41.6]} 12. a3 {[%clk 0:02:37.5]} 12... Na6 {[%clk
0:02:22.8]} 13. Kb1 {[%clk 0:02:32.6]} 13... Qc8 {[%clk 0:02:04.8]} 14. g4
{[%clk 0:02:21]} 14... Nc5 {[%clk 0:02:01.9]} 15. Nxc5 {[%clk 0:02:04.2]} 15...
dxc5 {[%clk 0:02:00.3]} 16. g5 {[%clk 0:02:04.3]} 16... Nh5 {[%clk 0:01:58.4]}
17. Nd5 {[%clk 0:02:01.2]} 17... Bxd5 {[%clk 0:01:53.3]} 18. exd5 {[%clk
0:02:01.3]} 18... Bd6 {[%clk 0:01:49.3]} 19. Rhg1 {[%clk 0:01:36.4]} 19... Qd8
{[%clk 0:01:47.1]} 20. Qd3 {[%clk 0:01:26.2]} 20... g6 {[%clk 0:01:40.8]} 21.
Rg4 {[%clk 0:01:17.7]} 21... Ng7 {[%clk 0:01:30.2]} 22. h4 {[%clk 0:01:16.5]}
22... Nf5 {[%clk 0:01:29.4]} 23. Bf2 {[%clk 0:01:03.9]} 23... Nd4 {[%clk
0:01:08.8]} 24. Bc4 {[%clk 0:00:54.6]} 24... f5 {[%clk 0:00:58.7]} 25. gxf6
{[%clk 0:00:46.9]} 25... Qxf6 {[%clk 0:00:58.1]} 26. Bxd4 {[%clk 0:00:42.9]}
26... exd4 {[%clk 0:00:52]} 27. h5 {[%clk 0:00:34]} 27... g5 {[%clk 0:00:49.1]}
28. Rdg1 {[%clk 0:00:30.6]} 28... h6 {[%clk 0:00:48]} 29. f4 {[%clk 0:00:28.3]}
29... Bxf4 {[%clk 0:00:45.2]} 30. d6+ {[%clk 0:00:27.7]} 30... Kg7 {[%clk
0:00:45.1]} 31. d7 {[%clk 0:00:25.2]} 31... Rad8 {[%clk 0:00:44.2]} 32. Bb5
{[%clk 0:00:21.8]} 32... Qf5 {[%clk 0:00:36.4]} 33. Qc4 {[%clk 0:00:16.9]} 33...
Rf6 {[%clk 0:00:32.2]} 34. R4g2 {[%clk 0:00:16.6]} 34... Re6 {[%clk 0:00:24.7]}
35. Ka2 {[%clk 0:00:14]} 35... Re3 {[%clk 0:00:21.9]} 36. Re2 {[%clk 0:00:12.5]}
36... Rxe2 {[%clk 0:00:20.4]} 37. Qxe2 {[%clk 0:00:11.6]} 37... Qe5 {[%clk
0:00:20.1]} 38. Qd3 {[%clk 0:00:11.2]} 38... Qf6 {[%clk 0:00:18.8]} 39. Re1
{[%clk 0:00:11.1]} 39... Bd6 {[%clk 0:00:18.3]} 40. Re8 {[%clk 0:00:09.6]} 40...
Be7 {[%clk 0:00:17]} 41. Rxd8 {[%clk 0:00:08.9]} 41... Bxd8 {[%clk 0:00:16.9]}
42. Bc4 {[%clk 0:00:08.4]} 42... b5 {[%clk 0:00:16.6]} 43. Bxb5 {[%clk 0:00:08]}
43... g4 {[%clk 0:00:16.5]} 44. Bc4 {[%clk 0:00:08.3]} 44... Qg5 {[%clk
0:00:16.4]} 45. Qe4 {[%clk 0:00:07.8]} 45... g3 {[%clk 0:00:16.5]} 46. Qd5
{[%clk 0:00:07.8]} 46... Kf8 {[%clk 0:00:14.8]} 47. Qf7# {[%clk 0:00:07.3]} 1-0

[Event "*** SCC Grand Prix: Titled Tuesday Blitz"]
[Site "Chess.com"]
[Date "2020.07.14"]
[Round "6"]
[White "Natalya_Buksa"]
[Black "GGfrances"]
[Result "0-1"]
[WhiteElo "2527"]
[BlackElo "2392"]
[TimeControl "180+1"]
[EndTime "11:07:31 PDT"]
[Termination "GGfrances won by checkmate"]

1. d4 {[%clk 0:03:00.9]} 1... Nf6 {[%clk 0:02:55.5]} 2. Nc3 {[%clk 0:03:01.1]}
2... d5 {[%clk 0:02:49.3]} 3. Bf4 {[%clk 0:03:01]} 3... g6 {[%clk 0:02:47]} 4.
e3 {[%clk 0:03:00.4]} 4... Bg7 {[%clk 0:02:45.4]} 5. h4 {[%clk 0:03:00.8]} 5...
h5 {[%clk 0:02:43.1]} 6. Nf3 {[%clk 0:03:00.2]} 6... Bg4 {[%clk 0:02:40.4]} 7.
Be2 {[%clk 0:03:00.3]} 7... O-O {[%clk 0:02:30.3]} 8. Ne5 {[%clk 0:03:00.5]}
8... Bf5 {[%clk 0:02:22.3]} 9. g4 {[%clk 0:02:57.4]} 9... hxg4 {[%clk 0:02:20]}
10. Nxg4 {[%clk 0:02:55.8]} 10... c5 {[%clk 0:02:16.1]} 11. Nxf6+ {[%clk
0:02:53.3]} 11... Bxf6 {[%clk 0:02:13.7]} 12. h5 {[%clk 0:02:52.4]} 12... Nc6
{[%clk 0:02:05.5]} 13. dxc5 {[%clk 0:02:25.2]} 13... Qa5 {[%clk 0:01:59.1]} 14.
Qd2 {[%clk 0:02:20.1]} 14... Nb4 {[%clk 0:01:50.6]} 15. Bd1 {[%clk 0:02:01.5]}
15... Qxc5 {[%clk 0:01:45.6]} 16. a3 {[%clk 0:01:57.4]} 16... Nc6 {[%clk
0:01:40.2]} 17. hxg6 {[%clk 0:01:46.9]} 17... Bxg6 {[%clk 0:01:34.3]} 18. Nxd5
{[%clk 0:01:41.5]} 18... Bxb2 {[%clk 0:01:29.8]} 19. Rb1 {[%clk 0:01:40.7]}
19... Bg7 {[%clk 0:01:25.7]} 20. Bf3 {[%clk 0:00:28.8]} 20... Rad8 {[%clk
0:01:17.3]} 21. Qe2 {[%clk 0:00:25.7]} 21... Rxd5 {[%clk 0:01:14.5]} 22. Bxd5
{[%clk 0:00:25.4]} 22... Qxd5 {[%clk 0:01:14.4]} 23. Rg1 {[%clk 0:00:24.9]}
23... b6 {[%clk 0:01:07.6]} 24. Kf1 {[%clk 0:00:21.7]} 24... Rd8 {[%clk
0:01:01.6]} 25. Rg3 {[%clk 0:00:19.8]} 25... Qh1+ {[%clk 0:00:58.7]} 26. Rg1
{[%clk 0:00:19.6]} 26... Qh3+ {[%clk 0:00:56.1]} 27. Rg2 {[%clk 0:00:20]} 27...
Be4 {[%clk 0:00:50.2]} 28. f3 {[%clk 0:00:17.2]} 28... Bxf3 {[%clk 0:00:47.6]}
29. Qf2 {[%clk 0:00:17.7]} 29... Qxg2+ {[%clk 0:00:44]} 30. Qxg2 {[%clk
0:00:17.8]} 30... Bxg2+ {[%clk 0:00:44.9]} 31. Kxg2 {[%clk 0:00:18.5]} 31... e5
{[%clk 0:00:44.1]} 32. Kf3 {[%clk 0:00:19.4]} 32... exf4 {[%clk 0:00:43.7]} 33.
Kxf4 {[%clk 0:00:19.2]} 33... Rd2 {[%clk 0:00:41.6]} 34. c4 {[%clk 0:00:17.9]}
34... Rd3 {[%clk 0:00:41]} 35. a4 {[%clk 0:00:17.7]} 35... Rc3 {[%clk 0:00:40]}
36. c5 {[%clk 0:00:18.6]} 36... Rxc5 {[%clk 0:00:39.9]} 37. Rd1 {[%clk
0:00:18.5]} 37... Rc4+ {[%clk 0:00:40.1]} 38. Kf5 {[%clk 0:00:18.4]} 38... Rxa4
{[%clk 0:00:41]} 39. Rd7 {[%clk 0:00:18.6]} 39... Ra5+ {[%clk 0:00:40.7]} 40.
Ke4 {[%clk 0:00:17.4]} 40... Re5+ {[%clk 0:00:39.4]} 41. Kf4 {[%clk 0:00:17.4]}
41... Re6 {[%clk 0:00:38.5]} 42. e4 {[%clk 0:00:16.8]} 42... b5 {[%clk
0:00:38.7]} 43. Rc7 {[%clk 0:00:16]} 43... b4 {[%clk 0:00:38.8]} 44. Rb7 {[%clk
0:00:16.4]} 44... a5 {[%clk 0:00:38.3]} 45. Kf5 {[%clk 0:00:16.3]} 45... a4
{[%clk 0:00:38.6]} 46. e5 {[%clk 0:00:16.7]} 46... a3 {[%clk 0:00:38.6]} 47. Rb6
{[%clk 0:00:15.4]} 47... a2 {[%clk 0:00:38.1]} 48. Ra6 {[%clk 0:00:15.3]} 48...
b3 {[%clk 0:00:38.6]} 49. Ra8+ {[%clk 0:00:15]} 49... Kh7 {[%clk 0:00:38.1]} 50.
Kg5 {[%clk 0:00:15.2]} 50... Rxe5+ {[%clk 0:00:38.4]} 51. Kf4 {[%clk 0:00:14.8]}
51... b2 {[%clk 0:00:37.8]} 52. Rxa2 {[%clk 0:00:14.2]} 52... b1=Q {[%clk
0:00:38]} 53. Rh2+ {[%clk 0:00:14.6]} 53... Bh6+ {[%clk 0:00:37.5]} 54. Kg4
{[%clk 0:00:14.3]} 54... Qe4+ {[%clk 0:00:36.6]} 55. Kg3 {[%clk 0:00:14.8]}
55... Qf4+ {[%clk 0:00:36.8]} 56. Kh3 {[%clk 0:00:14.6]} 56... Re3+ {[%clk
0:00:36.8]} 57. Kg2 {[%clk 0:00:15.3]} 57... Qf3+ {[%clk 0:00:36.9]} 58. Kg1
{[%clk 0:00:15.6]} 58... Re1# {[%clk 0:00:36.8]} 0-1

[Event "*** SCC Grand Prix: Titled Tuesday Blitz"]
[Site "Chess.com"]
[Date "2020.07.14"]
[Round "6"]
[White "szachuspl"]
[Black "GMaka"]
[Result "1-0"]
[WhiteElo "2521"]
[BlackElo "2347"]
[TimeControl "180+1"]
[EndTime "11:07:31 PDT"]
[Termination "szachuspl won by resignation"]

1. d4 {[%clk 0:03:00.9]} 1... Nf6 {[%clk 0:02:59.1]} 2. c4 {[%clk 0:02:59.8]}
2... Nc6 {[%clk 0:02:58.9]} 3. Nf3 {[%clk 0:02:58.9]} 3... e6 {[%clk 0:02:58.8]}
4. a3 {[%clk 0:02:58.6]} 4... g6 {[%clk 0:02:58.4]} 5. Nc3 {[%clk 0:02:58.5]}
5... Bg7 {[%clk 0:02:57.7]} 6. d5 {[%clk 0:02:58.8]} 6... Ne7 {[%clk 0:02:56.9]}
7. e4 {[%clk 0:02:58.2]} 7... d6 {[%clk 0:02:56]} 8. h3 {[%clk 0:02:58]} 8... e5
{[%clk 0:02:55.9]} 9. Be2 {[%clk 0:02:56.4]} 9... Nh5 {[%clk 0:02:54.2]} 10. g3
{[%clk 0:02:52.6]} 10... O-O {[%clk 0:02:53.9]} 11. Bd2 {[%clk 0:02:45]} 11...
a5 {[%clk 0:02:43.4]} 12. Qc2 {[%clk 0:02:39.8]} 12... f5 {[%clk 0:02:35.2]} 13.
O-O-O {[%clk 0:02:34.8]} 13... f4 {[%clk 0:02:31.4]} 14. g4 {[%clk 0:02:33.1]}
14... Nf6 {[%clk 0:02:31.2]} 15. Kb1 {[%clk 0:02:32.9]} 15... Nd7 {[%clk
0:02:30.1]} 16. g5 {[%clk 0:02:26.4]} 16... Nc5 {[%clk 0:02:26.1]} 17. b4 {[%clk
0:02:20.8]} 17... axb4 {[%clk 0:02:25.2]} 18. axb4 {[%clk 0:02:20.9]} 18... Na6
{[%clk 0:02:25]} 19. Qb3 {[%clk 0:02:19.7]} 19... Bd7 {[%clk 0:02:19]} 20. Kb2
{[%clk 0:02:19.2]} 20... c5 {[%clk 0:02:11.2]} 21. b5 {[%clk 0:02:08.4]} 21...
Nb4 {[%clk 0:02:10.5]} 22. Ra1 {[%clk 0:02:08]} 22... Rxa1 {[%clk 0:02:01.3]}
23. Kxa1 {[%clk 0:02:07.2]} 23... Qa5+ {[%clk 0:01:57.6]} 24. Kb2 {[%clk
0:02:05.2]} 24... Ra8 {[%clk 0:01:58.1]} 25. h4 {[%clk 0:01:59.3]} 25... Nc8
{[%clk 0:01:57.2]} 26. Rb1 {[%clk 0:01:57.1]} 26... Nb6 {[%clk 0:01:55.8]} 27.
Ne1 {[%clk 0:01:52.5]} 27... h6 {[%clk 0:01:48.9]} 28. Nc2 {[%clk 0:01:41.5]}
28... Nxc2 {[%clk 0:01:46.8]} 29. Kxc2 {[%clk 0:01:40.1]} 29... Qa3 {[%clk
0:01:42.3]} 30. Qxa3 {[%clk 0:01:37.8]} 30... Rxa3 {[%clk 0:01:43.2]} 31. Kb2
{[%clk 0:01:38.3]} 31... Ra8 {[%clk 0:01:39.4]} 32. Rg1 {[%clk 0:01:36.5]} 32...
Kf7 {[%clk 0:01:33]} 33. h5 {[%clk 0:01:29.5]} 33... hxg5 {[%clk 0:01:23.6]} 34.
Rxg5 {[%clk 0:01:27.4]} 34... gxh5 {[%clk 0:01:23.7]} 35. Bxh5+ {[%clk 0:01:25]}
35... Kf8 {[%clk 0:01:24.2]} 36. Be2 {[%clk 0:01:18.1]} 36... Bf6 {[%clk
0:01:22.5]} 37. Rh5 {[%clk 0:01:17]} 37... Kg7 {[%clk 0:01:19]} 38. f3 {[%clk
0:01:14.3]} 38... Kg6 {[%clk 0:01:18.4]} 39. Rh1 {[%clk 0:01:12.2]} 39... Kf7
{[%clk 0:01:06.2]} 40. Na2 {[%clk 0:01:04.3]} 40... Rg8 {[%clk 0:01:00.1]} 41.
Rh7+ {[%clk 0:00:58.7]} 41... Ke8 {[%clk 0:00:57.9]} 42. Rh2 {[%clk 0:00:58.7]}
42... Rg3 {[%clk 0:00:55.8]} 43. Nc1 {[%clk 0:00:57.6]} 43... Kf7 {[%clk
0:00:42.3]} 44. Nb3 {[%clk 0:00:57.6]} 44... Bg7 {[%clk 0:00:35]} 45. Na5 {[%clk
0:00:56.4]} 45... Bc8 {[%clk 0:00:35.4]} 46. Kc2 {[%clk 0:00:56.7]} 46... Rg1
{[%clk 0:00:35]} 47. Nb3 {[%clk 0:00:56]} 47... Rg3 {[%clk 0:00:32.6]} 48. Ba5
{[%clk 0:00:55.6]} 48... Na4 {[%clk 0:00:29]} 49. Bc7 {[%clk 0:00:52.1]} 49...
Bf8 {[%clk 0:00:27]} 50. b6 {[%clk 0:00:49.7]} 50... Bh3 {[%clk 0:00:25.8]} 51.
Kd2 {[%clk 0:00:43.4]} 51... Be7 {[%clk 0:00:22.1]} 52. Na5 {[%clk 0:00:41.2]}
52... Bc8 {[%clk 0:00:20.1]} 53. Rh8 {[%clk 0:00:40.6]} 53... Bf8 {[%clk
0:00:19.9]} 54. Rh7+ {[%clk 0:00:39.5]} 54... Ke8 {[%clk 0:00:19.1]} 55. Rh8
{[%clk 0:00:39.6]} 55... Rg2 {[%clk 0:00:17.8]} 56. Bxd6 {[%clk 0:00:37.2]}
56... Nxb6 {[%clk 0:00:15.6]} 57. Rxf8+ {[%clk 0:00:36]} 57... Kd7 {[%clk
0:00:16.5]} 58. Bxc5 {[%clk 0:00:35.8]} 1-0

[Event "*** SCC Grand Prix: Titled Tuesday Blitz"]
[Site "Chess.com"]
[Date "2020.07.14"]
[Round "6"]
[White "Firouzja2003"]
[Black "Zkid"]
[Result "0-1"]
[WhiteElo "3051"]
[BlackElo "2782"]
[TimeControl "180+1"]
[EndTime "11:07:33 PDT"]
[Termination "Zkid won on time"]

1. d4 {[%clk 0:03:00.9]} 1... d5 {[%clk 0:02:58.4]} 2. c4 {[%clk 0:03:00.6]}
2... dxc4 {[%clk 0:02:58.8]} 3. Nf3 {[%clk 0:03:00.3]} 3... Nf6 {[%clk 0:02:59]}
4. e3 {[%clk 0:02:59.9]} 4... e6 {[%clk 0:02:58.1]} 5. Bxc4 {[%clk 0:02:59.8]}
5... c5 {[%clk 0:02:58.5]} 6. O-O {[%clk 0:02:58.6]} 6... a6 {[%clk 0:02:58.8]}
7. Bb3 {[%clk 0:02:56.8]} 7... Nc6 {[%clk 0:02:58.3]} 8. Qe2 {[%clk 0:02:52.8]}
8... b5 {[%clk 0:02:44.7]} 9. Rd1 {[%clk 0:02:46.8]} 9... Be7 {[%clk 0:02:42.5]}
10. Nc3 {[%clk 0:02:44.7]} 10... O-O {[%clk 0:02:38.7]} 11. dxc5 {[%clk
0:02:26.6]} 11... Qc7 {[%clk 0:02:37.7]} 12. h3 {[%clk 0:02:26.2]} 12... Bxc5
{[%clk 0:02:35.3]} 13. e4 {[%clk 0:02:26]} 13... Bb7 {[%clk 0:02:22.9]} 14. e5
{[%clk 0:02:23.5]} 14... Nd7 {[%clk 0:02:22.9]} 15. Bf4 {[%clk 0:02:22.7]} 15...
Be7 {[%clk 0:02:17.7]} 16. Rac1 {[%clk 0:02:15.5]} 16... Nc5 {[%clk 0:02:15.5]}
17. Bc2 {[%clk 0:02:10.4]} 17... Rfd8 {[%clk 0:02:10]} 18. Ne4 {[%clk
0:02:06.3]} 18... Rxd1+ {[%clk 0:02:02.7]} 19. Rxd1 {[%clk 0:02:02.5]} 19...
Nxe4 {[%clk 0:01:43.1]} 20. Bxe4 {[%clk 0:02:03.4]} 20... Rd8 {[%clk 0:01:36.8]}
21. Rc1 {[%clk 0:01:40.3]} 21... Qd7 {[%clk 0:01:32.1]} 22. h4 {[%clk
0:01:31.7]} 22... Nb4 {[%clk 0:01:13.8]} 23. Bb1 {[%clk 0:01:29.1]} 23... h6
{[%clk 0:00:59.2]} 24. Be3 {[%clk 0:01:07]} 24... Nd3 {[%clk 0:00:46.3]} 25. Qc2
{[%clk 0:00:47.7]} 25... Be4 {[%clk 0:00:28]} 26. Rd1 {[%clk 0:00:45.3]} 26...
Qb7 {[%clk 0:00:22.8]} 27. Ne1 {[%clk 0:00:33.3]} 27... Nxf2 {[%clk 0:00:19.6]}
28. Rxd8+ {[%clk 0:00:23.1]} 28... Bxd8 {[%clk 0:00:20.5]} 29. Qxf2 {[%clk
0:00:14.7]} 29... Bxb1 {[%clk 0:00:20.2]} 30. a3 {[%clk 0:00:13]} 30... Qe4
{[%clk 0:00:20.3]} 31. Nf3 {[%clk 0:00:12.9]} 31... Ba2 {[%clk 0:00:20.5]} 32.
Bd2 {[%clk 0:00:06]} 32... Bd5 {[%clk 0:00:20]} 33. Qg3 {[%clk 0:00:06]} 33...
Kh7 {[%clk 0:00:20]} 34. Kh2 {[%clk 0:00:02.8]} 34... Bb6 {[%clk 0:00:18.7]} 35.
Bc3 {[%clk 0:00:02.6]} 35... Qe3 {[%clk 0:00:18.5]} 36. Ba5 {[%clk 0:00:02.1]}
36... Ba7 {[%clk 0:00:16.4]} 37. Bd2 {[%clk 0:00:01.4]} 37... Qe4 {[%clk
0:00:15.9]} 38. Bc3 {[%clk 0:00:01.4]} 38... Be3 {[%clk 0:00:15.8]} 39. Bd2
{[%clk 0:00:01.5]} 39... Bxd2 {[%clk 0:00:15.1]} 40. Nxd2 {[%clk 0:00:02.4]}
40... Qe2 {[%clk 0:00:15.5]} 41. Nb1 {[%clk 0:00:01.1]} 41... Qxb2 {[%clk
0:00:15.1]} 42. Nc3 {[%clk 0:00:02]} 42... Bxg2 {[%clk 0:00:13.5]} 43. Kg1
{[%clk 0:00:01.3]} 43... Bc6 {[%clk 0:00:12.4]} 44. Qd3+ {[%clk 0:00:01.3]}
44... g6 {[%clk 0:00:12.1]} 45. Ne2 {[%clk 0:00:01.5]} 45... Qxe5 {[%clk
0:00:11.4]} 0-1